[Event "Late-Titled-Tuesday-Blitz-October-24-2023"]
[Site "Chess.com"]
[Date "2023.10.24"]
[Round "3"]
[White "campochess"]
[Black "SmirnovTimofey2000"]
[Result "1-0"]
[WhiteElo "2214"]
[BlackElo "2301"]
[TimeControl "180+1"]
[EndTime "14:30:47 PDT"]
[Termination "campochess won on time"]

1. d4 {[%clk 0:02:57.1]} 1... d5 {[%clk 0:02:50.2]} 2. Bg5 {[%clk 0:02:56.4]}
2... Nf6 {[%clk 0:02:48.4]} 3. Nd2 {[%clk 0:02:54.4]} 3... e6 {[%clk 0:02:46.6]}
4. e3 {[%clk 0:02:53.1]} 4... Be7 {[%clk 0:02:45.4]} 5. Bd3 {[%clk 0:02:52.8]}
5... h6 {[%clk 0:02:44.7]} 6. Bh4 {[%clk 0:02:51.5]} 6... Nbd7 {[%clk
0:02:40.4]} 7. Ngf3 {[%clk 0:02:50.5]} 7... O-O {[%clk 0:02:39.2]} 8. O-O {[%clk
0:02:49]} 8... c5 {[%clk 0:02:35.6]} 9. c4 {[%clk 0:02:47.6]} 9... dxc4 {[%clk
0:02:24.9]} 10. Nxc4 {[%clk 0:02:46.3]} 10... cxd4 {[%clk 0:02:19]} 11. exd4
{[%clk 0:02:45.5]} 11... Nd5 {[%clk 0:02:17.5]} 12. Bg3 {[%clk 0:02:42.8]} 12...
b5 {[%clk 0:02:10.2]} 13. Nce5 {[%clk 0:02:41.5]} 13... Nxe5 {[%clk 0:02:01.2]}
14. Nxe5 {[%clk 0:02:40.6]} 14... Bd7 {[%clk 0:01:52.9]} 15. Rc1 {[%clk
0:02:36.2]} 15... a6 {[%clk 0:01:50]} 16. Be4 {[%clk 0:02:27.4]} 16... Rc8
{[%clk 0:01:36.2]} 17. Qf3 {[%clk 0:02:25.8]} 17... Nf6 {[%clk 0:01:32.7]} 18.
Rxc8 {[%clk 0:02:12.9]} 18... Qxc8 {[%clk 0:01:30.1]} 19. Bb7 {[%clk 0:02:12.5]}
19... Qd8 {[%clk 0:01:28.9]} 20. Rc1 {[%clk 0:02:07.5]} 20... a5 {[%clk
0:01:26.4]} 21. Bc6 {[%clk 0:01:52.7]} 21... b4 {[%clk 0:01:18.8]} 22. Qd3
{[%clk 0:01:47.1]} 22... Bxc6 {[%clk 0:01:16.4]} 23. Nxc6 {[%clk 0:01:45.7]}
23... Qd7 {[%clk 0:01:13.2]} 24. Nxe7+ {[%clk 0:01:44.9]} 24... Qxe7 {[%clk
0:01:14.1]} 25. Rc7 {[%clk 0:01:39.3]} 25... Qd8 {[%clk 0:01:11.3]} 26. Qc4
{[%clk 0:01:39]} 26... Nd5 {[%clk 0:01:10.6]} 27. Rc5 {[%clk 0:01:34.8]} 27...
Qd7 {[%clk 0:01:07.1]} 28. Rxa5 {[%clk 0:01:31.5]} 28... Rc8 {[%clk 0:00:48.4]}
29. Rc5 {[%clk 0:01:29.1]} 29... Ra8 {[%clk 0:00:45.4]} 30. h4 {[%clk 0:01:24]}
30... h5 {[%clk 0:00:32.4]} 31. a3 {[%clk 0:01:21.8]} 31... bxa3 {[%clk
0:00:31.3]} 32. bxa3 {[%clk 0:01:21.7]} 32... Rb8 {[%clk 0:00:31]} 33. a4 {[%clk
0:01:17.1]} 33... Ra8 {[%clk 0:00:27.7]} 34. a5 {[%clk 0:01:15.7]} 34... Qb7
{[%clk 0:00:23.3]} 35. Rb5 {[%clk 0:01:11.8]} 35... Qa7 {[%clk 0:00:18.2]} 36.
Bd6 {[%clk 0:01:06.2]} 36... Qd7 {[%clk 0:00:13.7]} 37. Bc5 {[%clk 0:00:57.8]}
37... Rc8 {[%clk 0:00:12.4]} 38. a6 {[%clk 0:00:56.5]} 38... Nb6 {[%clk
0:00:11.6]} 39. Qb4 {[%clk 0:00:53.5]} 39... Nd5 {[%clk 0:00:11.5]} 40. Qb2
{[%clk 0:00:53]} 40... Ra8 {[%clk 0:00:09.6]} 41. a7 {[%clk 0:00:52.2]} 41...
Rxa7 {[%clk 0:00:07.9]} 42. Bxa7 {[%clk 0:00:51.8]} 42... Qxa7 {[%clk
0:00:08.8]} 43. Rb8+ {[%clk 0:00:51.4]} 43... Kh7 {[%clk 0:00:08.7]} 44. Qc2+
{[%clk 0:00:49.9]} 44... g6 {[%clk 0:00:05.4]} 45. Qc8 {[%clk 0:00:48]} 45...
Qa1+ {[%clk 0:00:05]} 46. Kh2 {[%clk 0:00:47.2]} 46... Qxd4 {[%clk 0:00:04.3]}
47. Qg8+ {[%clk 0:00:47]} 47... Kh6 {[%clk 0:00:04.3]} 48. Qh8+ {[%clk
0:00:44.4]} 48... Qxh8 {[%clk 0:00:03.7]} 49. Rxh8+ {[%clk 0:00:44]} 49... Kg7
{[%clk 0:00:04.6]} 50. Rd8 {[%clk 0:00:43.4]} 50... Nf4 {[%clk 0:00:03.6]} 51.
Kg3 {[%clk 0:00:42.9]} 51... Ne2+ {[%clk 0:00:03]} 52. Kf3 {[%clk 0:00:42.9]}
52... Nc3 {[%clk 0:00:03.4]} 53. Rd4 {[%clk 0:00:35.4]} 53... Nd5 {[%clk
0:00:03.4]} 54. Ke4 {[%clk 0:00:34.8]} 54... Nf6+ {[%clk 0:00:03.4]} 55. Kd3
{[%clk 0:00:33.7]} 55... Nd5 {[%clk 0:00:03.3]} 56. g3 {[%clk 0:00:32.5]} 56...
Nf6 {[%clk 0:00:03.4]} 57. f3 {[%clk 0:00:32.5]} 57... Nd5 {[%clk 0:00:03.4]}
58. Ke4 {[%clk 0:00:32.6]} 58... Nf6+ {[%clk 0:00:03.4]} 59. Ke5 {[%clk
0:00:30.7]} 59... Nd5 {[%clk 0:00:02.3]} 60. Rxd5 {[%clk 0:00:28]} 60... exd5
{[%clk 0:00:03.2]} 61. Kxd5 {[%clk 0:00:28.1]} 61... Kf6 {[%clk 0:00:03.5]} 62.
Ke4 {[%clk 0:00:24.9]} 62... g5 {[%clk 0:00:03.5]} 63. f4 {[%clk 0:00:22.4]}
63... gxh4 {[%clk 0:00:02.9]} 64. gxh4 {[%clk 0:00:21.5]} 64... Ke6 {[%clk
0:00:02.6]} 65. f5+ {[%clk 0:00:20.4]} 65... Kf6 {[%clk 0:00:01.4]} 66. Kf4
{[%clk 0:00:20.4]} 66... Kg7 {[%clk 0:00:01.2]} 67. Kg5 {[%clk 0:00:20.6]} 1-0

[Event "Late-Titled-Tuesday-Blitz-October-24-2023"]
[Site "Chess.com"]
[Date "2023.10.24"]
[Round "3"]
[White "Hoshka"]
[Black "Xqswdc"]
[Result "1-0"]
[WhiteElo "2069"]
[BlackElo "2331"]
[TimeControl "180+1"]
[EndTime "14:30:50 PDT"]
[Termination "Hoshka won by checkmate"]

1. d4 {[%clk 0:03:00]} 1... e6 {[%clk 0:02:57.7]} 2. c4 {[%clk 0:02:59.7]} 2...
Nf6 {[%clk 0:02:55.9]} 3. g3 {[%clk 0:02:59.5]} 3... d5 {[%clk 0:02:51.9]} 4.
Bg2 {[%clk 0:02:59.4]} 4... Bb4+ {[%clk 0:02:51]} 5. Bd2 {[%clk 0:02:59]} 5...
Be7 {[%clk 0:02:51.4]} 6. Nf3 {[%clk 0:02:58.8]} 6... O-O {[%clk 0:02:46.5]} 7.
Qc2 {[%clk 0:02:58.6]} 7... Nbd7 {[%clk 0:02:43.8]} 8. O-O {[%clk 0:02:58]} 8...
Ne4 {[%clk 0:02:43.6]} 9. Nc3 {[%clk 0:02:50.7]} 9... Nxd2 {[%clk 0:02:43.2]}
10. Nxd2 {[%clk 0:02:44.8]} 10... c6 {[%clk 0:02:24.8]} 11. e4 {[%clk
0:02:43.7]} 11... dxe4 {[%clk 0:02:23.6]} 12. Ndxe4 {[%clk 0:02:42.2]} 12... Nf6
{[%clk 0:02:23.6]} 13. Rad1 {[%clk 0:02:35.6]} 13... Qa5 {[%clk 0:02:18]} 14. a3
{[%clk 0:02:16.5]} 14... Rd8 {[%clk 0:02:15.2]} 15. c5 {[%clk 0:02:09.2]} 15...
Nd5 {[%clk 0:02:13.4]} 16. h4 {[%clk 0:01:52.1]} 16... Bd7 {[%clk 0:01:36]} 17.
Rd3 {[%clk 0:01:42.9]} 17... e5 {[%clk 0:01:28.4]} 18. b4 {[%clk 0:01:35.8]}
18... Qc7 {[%clk 0:01:24.6]} 19. dxe5 {[%clk 0:01:27.5]} 19... Bf5 {[%clk
0:01:08.5]} 20. Nxd5 {[%clk 0:01:03.4]} 20... cxd5 {[%clk 0:01:07.9]} 21. Nd6
{[%clk 0:01:02.6]} 21... Bxd3 {[%clk 0:01:06.4]} 22. Qxd3 {[%clk 0:01:01.7]}
22... Bf8 {[%clk 0:00:46.1]} 23. Bxd5 {[%clk 0:01:00.3]} 23... Bxd6 {[%clk
0:00:37.7]} 24. exd6 {[%clk 0:00:58.7]} 24... Qd7 {[%clk 0:00:38.2]} 25. Qf3
{[%clk 0:00:55.6]} 25... Rab8 {[%clk 0:00:37.9]} 26. Re1 {[%clk 0:00:53.8]}
26... Re8 {[%clk 0:00:33.8]} 27. Rxe8+ {[%clk 0:00:52]} 27... Rxe8 {[%clk
0:00:34.7]} 28. Bxb7 {[%clk 0:00:50.7]} 28... Qh3 {[%clk 0:00:34.5]} 29. Be4
{[%clk 0:00:40.7]} 29... g6 {[%clk 0:00:18.1]} 30. c6 {[%clk 0:00:35.2]} 30...
f5 {[%clk 0:00:18.3]} 31. d7 {[%clk 0:00:35.1]} 31... Rf8 {[%clk 0:00:13.2]} 32.
Bd5+ {[%clk 0:00:31.6]} 32... Kg7 {[%clk 0:00:12.9]} 33. Qc3+ {[%clk 0:00:26.8]}
33... Kh6 {[%clk 0:00:12.7]} 34. Qd2+ {[%clk 0:00:23.9]} 34... f4 {[%clk
0:00:12.9]} 35. Bg2 {[%clk 0:00:23]} 35... Qe6 {[%clk 0:00:04.8]} 36. d8=Q
{[%clk 0:00:20.7]} 36... Rxd8 {[%clk 0:00:05.1]} 37. Qxd8 {[%clk 0:00:20.5]}
37... Qe1+ {[%clk 0:00:05]} 38. Kh2 {[%clk 0:00:17.1]} 38... f3 {[%clk
0:00:03.3]} 39. Qg5+ {[%clk 0:00:16.4]} 39... Kg7 {[%clk 0:00:03.2]} 40. Bxf3
{[%clk 0:00:14.1]} 40... Qxf2+ {[%clk 0:00:03.5]} 41. Bg2 {[%clk 0:00:14.3]}
41... Qc2 {[%clk 0:00:04.1]} 42. h5 {[%clk 0:00:13.6]} 42... Kf7 {[%clk
0:00:02.1]} 43. h6 {[%clk 0:00:12.7]} 43... Qc1 {[%clk 0:00:02.1]} 44. Qd5+
{[%clk 0:00:12]} 44... Kf6 {[%clk 0:00:02.3]} 45. Qd6+ {[%clk 0:00:12.1]} 45...
Kf7 {[%clk 0:00:01.9]} 46. c7 {[%clk 0:00:12.2]} 46... Qxh6+ {[%clk 0:00:01.7]}
47. Kg1 {[%clk 0:00:10.4]} 47... Qc1+ {[%clk 0:00:02.6]} 48. Bf1 {[%clk
0:00:10.5]} 48... Qe3+ {[%clk 0:00:02.7]} 49. Kg2 {[%clk 0:00:10]} 49... Qe4+
{[%clk 0:00:03.3]} 50. Kh2 {[%clk 0:00:08.8]} 50... Qc2+ {[%clk 0:00:02.5]} 51.
Bg2 {[%clk 0:00:08.5]} 51... Qd3 {[%clk 0:00:01.1]} 52. Qf4+ {[%clk 0:00:08.3]}
52... Kg7 {[%clk 0:00:01.4]} 53. Qe4 {[%clk 0:00:08]} 53... Qd1 {[%clk
0:00:02.1]} 54. Qe7+ {[%clk 0:00:07]} 54... Kh6 {[%clk 0:00:02.3]} 55. Qd8
{[%clk 0:00:06.2]} 55... Kg7 {[%clk 0:00:03.2]} 56. Qxd1 {[%clk 0:00:05.4]}
56... Kh6 {[%clk 0:00:03.8]} 57. c8=Q {[%clk 0:00:04.6]} 57... Kg5 {[%clk
0:00:04.7]} 58. Qc5+ {[%clk 0:00:04.2]} 58... Kh6 {[%clk 0:00:04.3]} 59. Qd2+
{[%clk 0:00:03.3]} 59... Kg7 {[%clk 0:00:04.4]} 60. Qe7+ {[%clk 0:00:01.4]}
60... Kg8 {[%clk 0:00:04.5]} 61. Qdd8# {[%clk 0:00:01.1]} 1-0

[Event "Late-Titled-Tuesday-Blitz-October-24-2023"]
[Site "Chess.com"]
[Date "2023.10.24"]
[Round "3"]
[White "Mikedannnn"]
[Black "AndresDelgado77"]
[Result "1/2-1/2"]
[WhiteElo "2560"]
[BlackElo "2355"]
[TimeControl "180+1"]
[EndTime "14:30:52 PDT"]
[Termination "Game drawn - insufficient material"]

1. e4 {[%clk 0:02:57.3]} 1... e6 {[%clk 0:02:59.5]} 2. d4 {[%clk 0:02:57]} 2...
d5 {[%clk 0:02:56.4]} 3. Nc3 {[%clk 0:02:56.9]} 3... Nf6 {[%clk 0:02:54.7]} 4.
e5 {[%clk 0:02:56.5]} 4... Nfd7 {[%clk 0:02:54.6]} 5. f4 {[%clk 0:02:56.8]} 5...
c5 {[%clk 0:02:54.3]} 6. Nf3 {[%clk 0:02:57]} 6... Nc6 {[%clk 0:02:49.9]} 7. Be3
{[%clk 0:02:55.9]} 7... cxd4 {[%clk 0:02:50.3]} 8. Nxd4 {[%clk 0:02:55.3]} 8...
Qb6 {[%clk 0:02:50.5]} 9. a3 {[%clk 0:02:48.6]} 9... Bc5 {[%clk 0:02:48.8]} 10.
Na4 {[%clk 0:02:37]} 10... Qa5+ {[%clk 0:02:48.3]} 11. c3 {[%clk 0:02:05.2]}
11... Bxd4 {[%clk 0:02:46.3]} 12. Bxd4 {[%clk 0:02:05.2]} 12... Nxd4 {[%clk
0:02:39.2]} 13. Qxd4 {[%clk 0:02:02.8]} 13... b6 {[%clk 0:02:37.4]} 14. Qb4
{[%clk 0:01:57.1]} 14... Qxb4 {[%clk 0:02:32.4]} 15. axb4 {[%clk 0:01:56.6]}
15... Bb7 {[%clk 0:02:31.2]} 16. Bb5 {[%clk 0:01:46.3]} 16... Ke7 {[%clk
0:02:20.9]} 17. Kd2 {[%clk 0:01:43.7]} 17... g5 {[%clk 0:02:17]} 18. Bxd7 {[%clk
0:01:41.5]} 18... Kxd7 {[%clk 0:02:16.2]} 19. fxg5 {[%clk 0:01:42]} 19... Rag8
{[%clk 0:02:15.2]} 20. h4 {[%clk 0:01:41.2]} 20... h6 {[%clk 0:02:14.9]} 21.
Raf1 {[%clk 0:01:12.8]} 21... Ke7 {[%clk 0:02:06.7]} 22. b3 {[%clk 0:01:12]}
22... hxg5 {[%clk 0:02:03.7]} 23. h5 {[%clk 0:01:11.8]} 23... d4 {[%clk
0:01:57.4]} 24. Rf2 {[%clk 0:01:06.9]} 24... dxc3+ {[%clk 0:01:49.9]} 25. Nxc3
{[%clk 0:01:07.8]} 25... g4 {[%clk 0:01:46.6]} 26. Nb5 {[%clk 0:00:56.8]} 26...
g3 {[%clk 0:01:38.5]} 27. Re2 {[%clk 0:00:54.1]} 27... Ba6 {[%clk 0:01:37.1]}
28. Nxa7 {[%clk 0:00:53]} 28... Bxe2 {[%clk 0:01:34.2]} 29. Kxe2 {[%clk
0:00:53.9]} 29... Rg5 {[%clk 0:01:33.1]} 30. Nc6+ {[%clk 0:00:52.4]} 30... Kd7
{[%clk 0:01:30.6]} 31. b5 {[%clk 0:00:51]} 31... Rhxh5 {[%clk 0:01:18.6]} 32.
Ra1 {[%clk 0:00:47.1]} 32... Rxe5+ {[%clk 0:01:08.3]} 33. Nxe5+ {[%clk
0:00:41.3]} 33... Rxe5+ {[%clk 0:01:07.7]} 34. Kf3 {[%clk 0:00:41.9]} 34... Rxb5
{[%clk 0:01:06.4]} 35. Ra7+ {[%clk 0:00:41.4]} 35... Ke8 {[%clk 0:00:55.7]} 36.
Kxg3 {[%clk 0:00:41.4]} 36... Rxb3+ {[%clk 0:00:53.4]} 37. Kf4 {[%clk
0:00:41.9]} 37... Rb2 {[%clk 0:00:41.1]} 38. g4 {[%clk 0:00:41.8]} 38... Kf8
{[%clk 0:00:37.7]} 39. Rd7 {[%clk 0:00:17.7]} 39... b5 {[%clk 0:00:32.2]} 40.
Rb7 {[%clk 0:00:16.4]} 40... Kg7 {[%clk 0:00:29.1]} 41. Kg5 {[%clk 0:00:16.8]}
41... b4 {[%clk 0:00:20.5]} 42. Kh5 {[%clk 0:00:15.6]} 42... Kf6 {[%clk
0:00:14.6]} 43. g5+ {[%clk 0:00:14.9]} 43... Ke5 {[%clk 0:00:12.4]} 44. Rxf7
{[%clk 0:00:14.2]} 44... Rh2+ {[%clk 0:00:09.4]} 45. Kg6 {[%clk 0:00:14.2]}
45... b3 {[%clk 0:00:10.1]} 46. Rb7 {[%clk 0:00:14.1]} 46... b2 {[%clk
0:00:04.1]} 47. Rb5+ {[%clk 0:00:14.5]} 47... Kd4 {[%clk 0:00:04.1]} 48. Kf6
{[%clk 0:00:14.9]} 48... Re2 {[%clk 0:00:03.1]} 49. g6 {[%clk 0:00:14.7]} 49...
Kc3 {[%clk 0:00:03.5]} 50. g7 {[%clk 0:00:11.7]} 50... Rg2 {[%clk 0:00:03.3]}
51. Rb8 {[%clk 0:00:12]} 51... e5 {[%clk 0:00:01.9]} 52. Rc8+ {[%clk 0:00:10.2]}
52... Kb3 {[%clk 0:00:01.5]} 53. Rb8+ {[%clk 0:00:10.5]} 53... Ka2 {[%clk
0:00:01.9]} 54. Ra8+ {[%clk 0:00:11.1]} 54... Kb1 {[%clk 0:00:02.1]} 55. g8=Q
{[%clk 0:00:10.8]} 55... Rxg8 {[%clk 0:00:02.2]} 56. Rxg8 {[%clk 0:00:11.4]}
56... Kc2 {[%clk 0:00:02.7]} 57. Rc8+ {[%clk 0:00:10.5]} 57... Kd2 {[%clk
0:00:02.2]} 58. Rb8 {[%clk 0:00:10.7]} 58... Kc1 {[%clk 0:00:02.2]} 59. Kxe5
{[%clk 0:00:11]} 59... b1=Q {[%clk 0:00:02.3]} 60. Rxb1+ {[%clk 0:00:11.7]}
60... Kxb1 {[%clk 0:00:02.5]} 1/2-1/2

[Event "Late-Titled-Tuesday-Blitz-October-24-2023"]
[Site "Chess.com"]
[Date "2023.10.24"]
[Round "3"]
[White "Truequitos"]
[Black "Aemulus20"]
[Result "1-0"]
[WhiteElo "2481"]
[BlackElo "2630"]
[TimeControl "180+1"]
[EndTime "14:30:53 PDT"]
[Termination "Truequitos won by checkmate"]

1. d4 {[%clk 0:03:00.2]} 1... Nf6 {[%clk 0:02:59.6]} 2. Nf3 {[%clk 0:03:00.8]}
2... g6 {[%clk 0:02:58]} 3. Bf4 {[%clk 0:03:00.3]} 3... Bg7 {[%clk 0:02:58.2]}
4. Nc3 {[%clk 0:03:00.4]} 4... c5 {[%clk 0:02:39.1]} 5. d5 {[%clk 0:02:58.3]}
5... d6 {[%clk 0:02:30.3]} 6. Qd2 {[%clk 0:02:57.4]} 6... Qa5 {[%clk 0:02:20.4]}
7. e4 {[%clk 0:02:52.2]} 7... a6 {[%clk 0:01:46.4]} 8. Bd3 {[%clk 0:02:41.7]}
8... O-O {[%clk 0:01:45.1]} 9. Bh6 {[%clk 0:02:39.2]} 9... Bg4 {[%clk
0:01:30.7]} 10. O-O {[%clk 0:02:34.7]} 10... Bxf3 {[%clk 0:01:29.4]} 11. gxf3
{[%clk 0:02:35.6]} 11... Nh5 {[%clk 0:01:23.9]} 12. Bxg7 {[%clk 0:02:34.1]}
12... Kxg7 {[%clk 0:01:23.2]} 13. f4 {[%clk 0:02:34]} 13... e5 {[%clk 0:01:10]}
14. dxe6 {[%clk 0:02:24.8]} 14... fxe6 {[%clk 0:01:09.4]} 15. f5 {[%clk
0:02:25.5]} 15... Nc6 {[%clk 0:01:05.3]} 16. Rae1 {[%clk 0:02:06.3]} 16... Nd4
{[%clk 0:01:04]} 17. f4 {[%clk 0:02:03.4]} 17... exf5 {[%clk 0:00:58.9]} 18.
exf5 {[%clk 0:01:55.7]} 18... Rae8 {[%clk 0:00:58.5]} 19. Rxe8 {[%clk
0:01:43.1]} 19... Rxe8 {[%clk 0:00:59.4]} 20. Qg2 {[%clk 0:01:40.6]} 20... c4
{[%clk 0:00:24.2]} 21. Qxb7+ {[%clk 0:01:35.3]} 21... Kh8 {[%clk 0:00:20]} 22.
fxg6 {[%clk 0:01:34]} 22... Ng7 {[%clk 0:00:17.7]} 23. Bxc4 {[%clk 0:01:17.9]}
23... Qc5 {[%clk 0:00:17.8]} 24. Qd5 {[%clk 0:01:00.8]} 24... Ne2+ {[%clk
0:00:14.1]} 25. Kg2 {[%clk 0:00:53.4]} 25... Nxc3 {[%clk 0:00:13.8]} 26. Qxc5
{[%clk 0:00:39.5]} 26... dxc5 {[%clk 0:00:14.7]} 27. bxc3 {[%clk 0:00:40.1]}
27... hxg6 {[%clk 0:00:15.3]} 28. Bxa6 {[%clk 0:00:40.1]} 28... Nf5 {[%clk
0:00:15.4]} 29. Kf2 {[%clk 0:00:32.8]} 29... Re3 {[%clk 0:00:11.7]} 30. Bd3
{[%clk 0:00:32]} 30... Rh3 {[%clk 0:00:07.4]} 31. Bxf5 {[%clk 0:00:32]} 31...
gxf5 {[%clk 0:00:07.8]} 32. Ke2 {[%clk 0:00:18.3]} 32... Rxc3 {[%clk 0:00:07.8]}
33. Kd2 {[%clk 0:00:17.7]} 33... Ra3 {[%clk 0:00:08.1]} 34. Ra1 {[%clk
0:00:16.9]} 34... Kg7 {[%clk 0:00:08.4]} 35. c3 {[%clk 0:00:17.3]} 35... Kg6
{[%clk 0:00:07.6]} 36. Kc2 {[%clk 0:00:13]} 36... Kh5 {[%clk 0:00:07.2]} 37. Kb2
{[%clk 0:00:12.7]} 37... Ra4 {[%clk 0:00:07.6]} 38. Rf1 {[%clk 0:00:12.9]} 38...
Kg4 {[%clk 0:00:06.7]} 39. Kb3 {[%clk 0:00:13.3]} 39... Ra8 {[%clk 0:00:05.8]}
40. a4 {[%clk 0:00:12.7]} 40... Rb8+ {[%clk 0:00:03.3]} 41. Kc4 {[%clk
0:00:12.5]} 41... Ra8 {[%clk 0:00:04.2]} 42. Kxc5 {[%clk 0:00:12.7]} 42... Rxa4
{[%clk 0:00:04.5]} 43. c4 {[%clk 0:00:13.2]} 43... Ra2 {[%clk 0:00:04.6]} 44.
Kc6 {[%clk 0:00:11.8]} 44... Rxh2 {[%clk 0:00:04.9]} 45. c5 {[%clk 0:00:11.4]}
45... Rc2 {[%clk 0:00:04.9]} 46. Kd6 {[%clk 0:00:11.4]} 46... Rd2+ {[%clk
0:00:05.5]} 47. Kc7 {[%clk 0:00:11.8]} 47... Rd4 {[%clk 0:00:04.7]} 48. c6
{[%clk 0:00:11.8]} 48... Rxf4 {[%clk 0:00:05.4]} 49. Rxf4+ {[%clk 0:00:07.9]}
49... Kxf4 {[%clk 0:00:06.3]} 50. Kd6 {[%clk 0:00:08.1]} 50... Kg3 {[%clk
0:00:06.6]} 51. c7 {[%clk 0:00:08.7]} 51... f4 {[%clk 0:00:07.2]} 52. c8=Q
{[%clk 0:00:09.3]} 52... f3 {[%clk 0:00:07]} 53. Qc3 {[%clk 0:00:09.5]} 53...
Kg2 {[%clk 0:00:07]} 54. Qg7+ {[%clk 0:00:09]} 54... Kh1 {[%clk 0:00:06.4]} 55.
Qh6+ {[%clk 0:00:08.9]} 55... Kg1 {[%clk 0:00:04.2]} 56. Qg5+ {[%clk 0:00:09.8]}
56... Kf1 {[%clk 0:00:04]} 57. Qc1+ {[%clk 0:00:08.3]} 57... Kg2 {[%clk
0:00:04.1]} 58. Qg5+ {[%clk 0:00:08.7]} 58... Kf1 {[%clk 0:00:04.6]} 59. Qb5+
{[%clk 0:00:07.6]} 59... Kg2 {[%clk 0:00:04.6]} 60. Qd5 {[%clk 0:00:07.2]} 60...
Kf2 {[%clk 0:00:03.7]} 61. Ke5 {[%clk 0:00:06.8]} 61... Ke3 {[%clk 0:00:03.6]}
62. Qd4+ {[%clk 0:00:06.5]} 62... Ke2 {[%clk 0:00:03.9]} 63. Ke4 {[%clk
0:00:06.8]} 63... f2 {[%clk 0:00:04]} 64. Qd3+ {[%clk 0:00:07.2]} 64... Ke1
{[%clk 0:00:04.6]} 65. Ke3 {[%clk 0:00:07.6]} 65... f1=Q {[%clk 0:00:04.3]} 66.
Qb1# {[%clk 0:00:06.3]} 1-0

[Event "Late-Titled-Tuesday-Blitz-October-24-2023"]
[Site "Chess.com"]
[Date "2023.10.24"]
[Round "3"]
[White "Iball95"]
[Black "Ykow"]
[Result "0-1"]
[WhiteElo "2813"]
[BlackElo "2531"]
[TimeControl "180+1"]
[EndTime "14:30:58 PDT"]
[Termination "Ykow won by checkmate"]

1. e4 {[%clk 0:02:59.7]} 1... c5 {[%clk 0:02:57.4]} 2. Nf3 {[%clk 0:02:59.5]}
2... d6 {[%clk 0:02:57.4]} 3. Nc3 {[%clk 0:02:59.6]} 3... Nf6 {[%clk 0:02:55.7]}
4. d4 {[%clk 0:03:00]} 4... cxd4 {[%clk 0:02:55.5]} 5. Qxd4 {[%clk 0:03:00.9]}
5... Nc6 {[%clk 0:02:55.5]} 6. Bb5 {[%clk 0:03:01.4]} 6... Qa5 {[%clk
0:02:55.1]} 7. Bxc6+ {[%clk 0:02:34.4]} 7... bxc6 {[%clk 0:02:53.9]} 8. e5
{[%clk 0:02:34.2]} 8... dxe5 {[%clk 0:02:41.3]} 9. Nxe5 {[%clk 0:02:35.1]} 9...
Bb7 {[%clk 0:02:40.3]} 10. O-O {[%clk 0:02:33]} 10... Rd8 {[%clk 0:02:40]} 11.
Qf4 {[%clk 0:02:29.9]} 11... e6 {[%clk 0:02:40.1]} 12. Re1 {[%clk 0:02:24.6]}
12... Qc7 {[%clk 0:02:27.3]} 13. Qg3 {[%clk 0:02:12.1]} 13... c5 {[%clk
0:01:57.5]} 14. Nb5 {[%clk 0:02:05]} 14... Qb6 {[%clk 0:01:48]} 15. a4 {[%clk
0:02:05.2]} 15... a6 {[%clk 0:01:46]} 16. Nc4 {[%clk 0:01:57.8]} 16... Qc6
{[%clk 0:01:46.3]} 17. Nc7+ {[%clk 0:01:17]} 17... Ke7 {[%clk 0:01:43.9]} 18.
Na5 {[%clk 0:01:09.7]} 18... Qb6 {[%clk 0:01:40.8]} 19. Nxb7 {[%clk 0:01:06]}
19... Qxb7 {[%clk 0:01:39]} 20. Bf4 {[%clk 0:01:06.3]} 20... Rd7 {[%clk
0:01:07.8]} 21. Rad1 {[%clk 0:00:59.5]} 21... Kd8 {[%clk 0:01:07.9]} 22. Rxd7+
{[%clk 0:00:46.8]} 22... Nxd7 {[%clk 0:01:08.8]} 23. Rd1 {[%clk 0:00:45.1]}
23... Kc8 {[%clk 0:01:06.8]} 24. Qd3 {[%clk 0:00:45.2]} 24... Qc6 {[%clk
0:01:07]} 25. Nxa6 {[%clk 0:00:45.3]} 25... Be7 {[%clk 0:01:06.1]} 26. Qb5
{[%clk 0:00:35.9]} 26... Qxb5 {[%clk 0:01:06]} 27. axb5 {[%clk 0:00:36.8]} 27...
Nb6 {[%clk 0:01:06.9]} 28. b3 {[%clk 0:00:35.9]} 28... Nd5 {[%clk 0:01:06.8]}
29. Bg3 {[%clk 0:00:32.7]} 29... Nc3 {[%clk 0:01:05.9]} 30. Ra1 {[%clk
0:00:30.7]} 30... Kb7 {[%clk 0:01:00.5]} 31. Nc7 {[%clk 0:00:28.7]} 31... Rc8
{[%clk 0:00:55.5]} 32. Be5 {[%clk 0:00:24.7]} 32... Bf6 {[%clk 0:00:51.6]} 33.
Bxf6 {[%clk 0:00:19.4]} 33... gxf6 {[%clk 0:00:52.5]} 34. Na6 {[%clk 0:00:20.1]}
34... Nxb5 {[%clk 0:00:52.6]} 35. b4 {[%clk 0:00:20.8]} 35... cxb4 {[%clk
0:00:50.8]} 36. Nxb4 {[%clk 0:00:21.7]} 36... Rc4 {[%clk 0:00:51.4]} 37. Rb1
{[%clk 0:00:21.1]} 37... Nc3 {[%clk 0:00:46.1]} 38. Rb3 {[%clk 0:00:21.1]} 38...
Kc7 {[%clk 0:00:42]} 39. g3 {[%clk 0:00:21.1]} 39... Ne2+ {[%clk 0:00:40.6]} 40.
Kf1 {[%clk 0:00:21]} 40... Nd4 {[%clk 0:00:41.5]} 41. Rb2 {[%clk 0:00:21.2]}
41... Kd6 {[%clk 0:00:41.6]} 42. h4 {[%clk 0:00:21]} 42... h5 {[%clk 0:00:41.4]}
43. Kg2 {[%clk 0:00:21.1]} 43... e5 {[%clk 0:00:41.5]} 44. f3 {[%clk 0:00:20.5]}
44... f5 {[%clk 0:00:41.7]} 45. Kf2 {[%clk 0:00:20.9]} 45... e4 {[%clk
0:00:39.9]} 46. fxe4 {[%clk 0:00:21.8]} 46... fxe4 {[%clk 0:00:40.8]} 47. Ke3
{[%clk 0:00:21.8]} 47... Ke5 {[%clk 0:00:41.2]} 48. Kd2 {[%clk 0:00:17.6]} 48...
Nf3+ {[%clk 0:00:39.7]} 49. Ke2 {[%clk 0:00:18]} 49... f5 {[%clk 0:00:37.6]} 50.
Na2 {[%clk 0:00:16.1]} 50... Nd4+ {[%clk 0:00:36.6]} 51. Kd2 {[%clk 0:00:15.1]}
51... f4 {[%clk 0:00:36.3]} 52. gxf4+ {[%clk 0:00:14.8]} 52... Kxf4 {[%clk
0:00:37.2]} 53. c3 {[%clk 0:00:13.9]} 53... Nf3+ {[%clk 0:00:37.4]} 54. Ke2
{[%clk 0:00:14.2]} 54... Nxh4 {[%clk 0:00:38.1]} 55. Rb5 {[%clk 0:00:13.9]}
55... Nf5 {[%clk 0:00:37.7]} 56. Nb4 {[%clk 0:00:10.4]} 56... Ng3+ {[%clk
0:00:36.5]} 57. Ke1 {[%clk 0:00:09.5]} 57... Kf3 {[%clk 0:00:34.9]} 58. Nd5
{[%clk 0:00:04.8]} 58... e3 {[%clk 0:00:35.3]} 59. Rb8 {[%clk 0:00:03.6]} 59...
Ke4 {[%clk 0:00:31.5]} 60. Nf6+ {[%clk 0:00:03.3]} 60... Kd3 {[%clk 0:00:31.4]}
61. Rd8+ {[%clk 0:00:03.6]} 61... Kc2 {[%clk 0:00:29.7]} 62. Nd5 {[%clk
0:00:03.7]} 62... Re4 {[%clk 0:00:27.3]} 63. Nb4+ {[%clk 0:00:02.5]} 63... Kxc3
{[%clk 0:00:27.3]} 64. Nd5+ {[%clk 0:00:03.4]} 64... Kc4 {[%clk 0:00:26.9]} 65.
Nb6+ {[%clk 0:00:02.4]} 65... Kb5 {[%clk 0:00:26.8]} 66. Nd5 {[%clk 0:00:01.9]}
66... Kc6 {[%clk 0:00:25.2]} 67. Nc3 {[%clk 0:00:01.8]} 67... Re5 {[%clk
0:00:25.2]} 68. Rh8 {[%clk 0:00:01.6]} 68... Rf5 {[%clk 0:00:24]} 69. Ne2 {[%clk
0:00:01.2]} 69... Rf1# {[%clk 0:00:24]} 0-1